fUSD/lending_fUSD_20260227
["ID","MTS","AMOUNT","RATE_DAILY","PERIOD"]
[406784865,1772190653788,-200.522654,0.00027397,2]
[406784866,1772190653798,-200.522654,0.00027397,2]
[406784867,1772190653808,-200.522654,0.00027397,2]
[406784868,1772190653818,-200.522654,0.00027397,2]
[406784869,1772190653827,-200.522654,0.00027397,2]
[406784870,1772190653837,-200.522654,0.00027397,2]
[406784871,1772190653847,-200.522654,0.00027397,2]
[406784872,1772190653857,-200.522654,0.00027397,2]
[406784873,1772190653867,-200.522654,0.00027397,2]
[406784874,1772190653876,-200.522654,0.00027397,2]
[406784875,1772190653886,-200.522654,0.00027397,2]
[406784876,1772190653896,-200.522654,0.00027397,2]
[406784877,1772190653907,-200.522654,0.00027397,2]
[406784878,1772190654072,-200.52265,0.00027397,2]
[406784879,1772190654093,-151.0,0.00027397,2]
[406784880,1772190654103,-153.92805,0.00027397,2]
[406784881,1772190654114,-151.0,0.00027397,2]
[406784882,1772190654123,-151.0,0.00027397,2]
[406784883,1772190654132,-151.0,0.00027397,2]
[406784884,1772190654142,-151.0,0.00027397,2]
[406784885,1772190654152,-151.0,0.00027397,2]
[406784886,1772190654162,-151.0,0.00027397,2]
[406784887,1772190654172,-151.0,0.00027397,2]
[406784888,1772190654181,-151.0,0.00027397,2]
[406784889,1772190654191,-151.0,0.00027397,2]
[406784890,1772190654200,-189.641507,0.00027397,2]
[406784891,1772190654209,-201.165086,0.00027397,2]
[406784892,1772190654219,-201.165086,0.00027397,2]
[406784893,1772190654227,-201.165086,0.00027397,2]
[406784894,1772190654237,-201.165086,0.00027397,2]
[406784895,1772190654246,-201.165086,0.00027397,2]
[406784896,1772190654255,-201.165086,0.00027397,2]
[406784897,1772190654264,-201.165086,0.00027397,2]
[406784898,1772190654273,-201.165086,0.00027397,2]
[406784899,1772190654283,-201.165086,0.00027397,2]
[406784900,1772190654292,-201.165086,0.00027397,2]
[406784901,1772190654301,-201.165086,0.00027397,2]
[406784902,1772190654311,-201.165086,0.00027397,2]
[406784903,1772190654320,-201.165086,0.00027397,2]
[406784904,1772190654329,-201.165086,0.00027397,2]
[406784905,1772190654338,-201.165086,0.00027397,2]
[406784906,1772190654347,-201.165086,0.00027397,2]
[406784907,1772190654356,-201.165086,0.00027397,2]
[406784908,1772190654365,-201.165086,0.00027397,2]
[406784909,1772190654374,-201.165086,0.00027397,2]
[406784910,1772190654384,-201.165081,0.00027397,2]
[406784911,1772190654393,-319.478423,0.00027397,2]
[406784912,1772190654402,-319.478423,0.00027397,2]
[406784913,1772190654411,-319.478423,0.00027397,2]
[406784914,1772190654421,-319.478423,0.00027397,2]
[406784915,1772190654430,-529.97690098,0.00027397,5]
[406784916,1772190654439,-150.0,0.00027397,5]
[406784917,1772190654448,-160.15963991,0.00027397,5]
[406784918,1772190654459,-4441.19,0.000276,14]
[406784919,1772190654469,-200.0,0.00027736,15]
[406784920,1772190654477,-471.09,0.0002783,30]
[406784921,1772190654487,-250.0,0.00027945,5]
[406784922,1772190654496,-1000.0,0.00028,2]
[406784923,1772190654505,-1000.0,0.00028,2]
[406784924,1772190654515,-509.0,0.00028361,14]
[406784925,1772190654524,-479.27616333,0.00028493,5]
[406784926,1772190654534,-745.65223616,0.00028541,2]
[406784927,1772190654543,-150.0,0.00028544,2]
[406784928,1772190654553,-1000.0,0.00029,2]
[406784929,1772190654563,-1000.0,0.00029,2]
[406784930,1772190654572,-1211.0,0.00029032,2]
[406784931,1772190654581,-921.0,0.00029032,2]
[406784932,1772190654590,-4970.707,0.00029032,2]
[406784933,1772190654599,-1041.0,0.00029505,2]
[406784934,1772190654609,-2903.61100921,0.00029698,2]
[406784935,1772190654618,-200.0,0.000299,10]
[406784936,1772190654627,-150.0,0.00029971,2]
[406784937,1772190654638,-117135.68284998,0.0003,5]
[406784938,1772190654648,-11017.56411381,0.0003,2]
[406784939,1772190654657,-5000.0,0.0003,2]
[406784940,1772190654666,-1182.94403231,0.0003,7]
[406784941,1772190654675,-489.4604048,0.0003,7]
[406784942,1772190654684,-489.4604048,0.0003,7]
[406784943,1772190654694,-510.98,0.00030028,60]
[406784944,1772190654703,-2000.0,0.00030136,22]
[406784945,1772190654713,-935.63818804,0.00030137,2]
[406784946,1772190654722,-570.812893,0.00030137,7]
[406784947,1772190654734,-570.812893,0.00030137,7]
[406784948,1772190654744,-570.812893,0.00030137,7]
[406784949,1772190654754,-570.812893,0.00030137,7]
[406784950,1772190654763,-570.812893,0.00030137,7]
[406784951,1772190654774,-570.812893,0.00030137,7]
[406784952,1772190654783,-570.812893,0.00030137,7]
[406784953,1772190654793,-570.812893,0.00030137,7]
[406784954,1772190654802,-570.812893,0.00030137,7]
[406784955,1772190654812,-570.812893,0.00030137,7]
[406784956,1772190654821,-570.812893,0.00030137,7]
[406784957,1772190654831,-570.812893,0.00030137,7]
[406784958,1772190654840,-570.812893,0.00030137,7]
[406784959,1772190654850,-570.812893,0.00030137,7]
[406784960,1772190654859,-570.812893,0.00030137,7]
[406784961,1772190654868,-570.812893,0.00030137,7]
[406784962,1772190654877,-570.812893,0.00030137,7]
[406784963,1772190654887,-570.812893,0.00030137,7]
[406784964,1772190654896,-570.812893,0.00030137,7]
[406784965,1772190654906,-570.812902,0.00030137,7]
[406784966,1772190654915,-193.41,0.000305,30]
[406784967,1772190654925,-509.0,0.00030606,16]
[406784968,1772190654934,-199.99,0.00030685,2]
[406784969,1772190654943,-471.09,0.00030714,30]
[406784970,1772190654953,-409.0,0.00030822,2]
[406784971,1772190654962,-179.46026075,0.00031,30]
[406784972,1772190654972,-1000.0,0.00031,2]
[406784973,1772190654981,-1000.0,0.00031,120]
[406784974,1772190654991,-174.00015664,0.00031,7]
[406784975,1772190655001,-773.2413689,0.0003128,2]
[406784976,1772190655010,-150.0,0.0003147,2]
[406784977,1772190655020,-4011.49018758,0.000319,2]
[406784978,1772190655029,-203.69193971,0.000319,2]
[406784979,1772190655039,-37305.00732999,0.00032,120]
[406784980,1772190655066,-319.478423,0.00027397,2]
[406784981,1772190655075,-11120.75263695,0.00032,120]
[406784983,1772191031123,300.0,8.665e-05,3]
[406784984,1772191448975,-1053.977,8.41e-05,2]
[406784985,1772191449012,-159.982,8.41e-05,2]
[406784986,1772191449052,-150.0,8.58e-05,2]
[406784987,1772191449085,-264.25675022,8.581e-05,2]
[406784988,1772191449118,-500.0,8.581e-05,2]
[406784989,1772191449156,-394.53972249,8.581e-05,2]
[406784990,1772191449201,-500.0,8.581e-05,2]
[406784991,1772191449241,-289.65512774,8.581e-05,2]
[406784992,1772191449281,-1040.08152539,8.581e-05,2]
[406784993,1772191449316,-156.55676924,8.581e-05,2]
[406784994,1772191449354,-490.95110492,8.581e-05,2]
[406784995,1772191451377,-549.13042047,8.581e-05,2]
[406784996,1772191451422,-1040.08152539,8.581e-05,2]
[406784997,1772191451464,-1040.08152539,8.581e-05,2]
[406784998,1772191451506,-1040.08152539,8.581e-05,2]
[406784999,1772191451555,-1040.08152539,8.581e-05,2]
[406785000,1772191451598,-290.54347797,8.581e-05,2]
[406785001,1772191452863,-749.53804742,8.581e-05,2]
[406785002,1772191452903,-1040.08152539,8.581e-05,2]
[406785003,1772191452949,-1040.08152539,8.581e-05,2]
[406785004,1772191452993,-1040.08152539,8.581e-05,2]
[406785005,1772191453032,-1040.08152539,8.581e-05,2]
[406785006,1772191453071,-90.13585102,8.581e-05,2]
[406785007,1772191454070,-949.94567437,8.581e-05,2]
[406785008,1772191454371,-1040.08152539,8.581e-05,2]
[406785009,1772191454397,-1040.08152539,8.581e-05,2]
[406785010,1772191454422,-1040.08152539,8.581e-05,2]
[406785011,1772191454447,-929.80974946,8.581e-05,2]
[406785012,1772191455332,-110.27177593,8.581e-05,2]
[406785013,1772191455357,-1040.08152539,8.581e-05,2]
[406785014,1772191455380,-1040.08152539,8.581e-05,2]
[406785015,1772191455403,-1040.08152539,8.581e-05,2]
[406785016,1772191455428,-1040.08152539,8.581e-05,2]
[406785017,1772191455450,-729.40212251,8.581e-05,2]
[406785018,1772191456401,-310.67940288,8.581e-05,2]
[406785019,1772191456426,-1040.08152539,8.581e-05,2]
[406785020,1772191456450,-1040.08152539,8.581e-05,2]
[406785021,1772191456474,-1040.08152539,8.581e-05,2]
[406785022,1772191456498,-1040.08152539,8.581e-05,2]
[406785023,1772191456525,-528.99449556,8.581e-05,2]
[406785024,1772191458295,-511.08702983,8.581e-05,2]
[406785025,1772191458321,-1040.08152539,8.581e-05,2]
[406785026,1772191458347,-1040.08152539,8.581e-05,2]
[406785027,1772191458372,-1040.08152539,8.581e-05,2]
[406785028,1772191458397,-1040.08152539,8.581e-05,2]
[406785029,1772191458421,-328.58686861,8.581e-05,2]
[406785030,1772191459413,-711.49465678,8.581e-05,2]
[406785031,1772191459440,-1040.08152539,8.581e-05,2]
[406785032,1772191459465,-1040.08152539,8.581e-05,2]
[406785033,1772191459488,-1040.08152539,8.581e-05,2]
[406785034,1772191459512,-1040.08152539,8.581e-05,2]
[406785035,1772191459536,-128.17924166,8.581e-05,2]
[406785036,1772191460091,-911.90228373,8.581e-05,2]
[406785037,1772191460124,-1040.08152539,8.581e-05,2]
[406785038,1772191460157,-55.96085637,8.581e-05,2]
[406785039,1772191462980,-157.75,8.414e-05,2]
[406785040,1772191463014,-984.12066902,8.581e-05,2]
[406785041,1772191463051,-1040.08152539,8.581e-05,2]
[406785042,1772191466031,-1040.08152539,8.581e-05,2]
[406785043,1772191466067,-1040.08152539,8.581e-05,2]
[406785044,1772191469138,-1040.08152539,8.581e-05,2]
[406785045,1772191469170,-1040.08152539,8.581e-05,2]
[406785046,1772191472072,-1040.08152539,8.581e-05,2]
[406785047,1772191472104,-1040.08152539,8.581e-05,2]
[406785048,1772191488894,-1040.08152539,8.581e-05,2]
[406785049,1772191488918,-1040.08152539,8.581e-05,2]
[406785050,1772191488941,-1040.08152539,8.581e-05,2]
[406785051,1772191488964,-1040.08152539,8.581e-05,2]
[406785052,1772191488991,-839.67389844,8.581e-05,2]
[406785053,1772191489871,-200.40762695,8.581e-05,2]
[406785054,1772191489896,-1040.08152539,8.581e-05,2]
[406785055,1772191489919,-1040.08152539,8.581e-05,2]
[406785056,1772191489941,-1040.08152539,8.581e-05,2]
[406785057,1772191489965,-1040.08152539,8.581e-05,2]
[406785058,1772191489991,-639.26627149,8.581e-05,2]
[406785059,1772191491453,-400.8152539,8.581e-05,2]
[406785060,1772191491479,-1016.30823339,8.581e-05,2]
[406785061,1772191491508,-1016.30823339,8.581e-05,2]
[406785062,1772191491533,-1016.30823339,8.581e-05,2]
[406785063,1772191491558,-1016.30823339,8.581e-05,2]
[406785064,1772191491583,-533.95181254,8.581e-05,2]
[406785065,1772191491623,-482.35642085,8.581e-05,2]
[406785066,1772191491649,-1016.30823339,8.581e-05,2]
[406785067,1772191491675,-1016.30823339,8.581e-05,2]
[406785068,1772191491699,-1016.30823339,8.581e-05,2]
[406785069,1772191491724,-1016.30823339,8.581e-05,2]
[406785070,1772191491748,-452.41064559,8.581e-05,2]
[406785071,1772191491847,-563.8975878,8.581e-05,2]
[406785072,1772191491872,-1016.30823339,8.581e-05,2]
[406785073,1772191491897,-1016.30823339,8.581e-05,2]
[406785074,1772191491921,-1016.30823339,8.581e-05,2]
[406785075,1772191491945,-1016.30823339,8.581e-05,2]
[406785076,1772191491969,-370.86947864,8.581e-05,2]
[406785077,1772191492266,-645.43875475,8.581e-05,2]
[406785078,1772191492301,-1016.30823339,8.581e-05,2]
[406785079,1772191492326,-1016.30823339,8.581e-05,2]
[406785080,1772191492354,-1016.30823339,8.581e-05,2]
[406785081,1772191492387,-1016.30823339,8.581e-05,2]
[406785082,1772191492411,-289.32831169,8.581e-05,2]
[406785083,1772191492992,-726.9799217,8.581e-05,2]
[406785084,1772191493020,-1016.30823339,8.581e-05,2]
[406785085,1772191493046,-1016.30823339,8.581e-05,2]
[406785086,1772191493072,-1016.30823339,8.581e-05,2]
[406785087,1772191493096,-1016.30823339,8.581e-05,2]
[406785088,1772191493120,-207.78714474,8.581e-05,2]
[406785089,1772191494159,-808.52108865,8.581e-05,2]
[406785090,1772191494186,-1016.30823339,8.581e-05,2]
[406785091,1772191494209,-1016.30823339,8.581e-05,2]
[406785092,1772191494235,-1016.30823339,8.581e-05,2]
[406785093,1772191494260,-1016.30823339,8.581e-05,2]
[406785094,1772191494285,-126.24597779,8.581e-05,2]
[406785095,1772191495089,-890.0622556,8.581e-05,2]
[406785096,1772191495115,-1016.30823339,8.581e-05,2]
[406785097,1772191495141,-1016.30823339,8.581e-05,2]
[406785098,1772191495167,-1016.30823339,8.581e-05,2]
[406785099,1772191495192,-1016.30823339,8.581e-05,2]
[406785100,1772191495217,-44.70481084,8.581e-05,2]
[406785101,1772191496103,-971.60342255,8.581e-05,2]
[406785102,1772191496125,-195.0,8.581e-05,2]
[406785103,1772191496147,-250.0,8.581e-05,2]
[406785104,1772191496169,-2348.82239436,8.581e-05,2]
[406785105,1772191496195,-1234.57418309,8.582e-05,2]
[406785125,1772191831340,-397.84647269,8.482e-05,2]
[406785126,1772191831357,-297.04785907,8.482e-05,2]
[406785127,1772191831368,-729.0,8.482e-05,2]
[406785128,1772191831379,-563.90783571,8.482e-05,2]
[406785129,1772191831391,-1326.99783253,8.482e-05,2]
[406785130,1772191831401,-195.0,8.491e-05,2]
[406785131,1772191831410,-1026.74081896,8.499e-05,2]
[406785132,1772191831437,-173.25918104,8.499e-05,2]
[406785133,1772191831446,-300.0,8.499e-05,2]
[406785134,1772191831456,-1958.60427707,8.5e-05,2]
[406785135,1772191831466,-201.10034369,8.5e-05,2]
[406785136,1772191831477,-3549.80631914,8.5e-05,2]
[406785137,1772191831486,-1479.6728482,8.5e-05,2]
[406785138,1772191831498,-2015.80487419,8.5e-05,2]
[406785139,1772191831515,-1695.79160554,8.5e-05,2]
[406785140,1772191831524,-195.0,8.545e-05,2]
[406785141,1772191831533,-150.0,8.571e-05,2]
[406785142,1772191831543,-18318.15995328,8.572e-05,2]
[406785144,1772191831552,-500.0,8.581e-05,2]
[406785145,1772191831562,-500.0,8.581e-05,2]
[406785146,1772191831571,-500.0,8.581e-05,2]
[406785147,1772191831580,-500.0,8.581e-05,2]
[406785149,1772191831589,-500.0,8.581e-05,2]
[406785150,1772191831598,-500.0,8.581e-05,2]
[406785151,1772191831607,-500.0,8.581e-05,2]
[406785152,1772191831616,-500.0,8.581e-05,2]
[406785153,1772191831625,-500.0,8.581e-05,2]
[406785154,1772191831635,-500.0,8.581e-05,2]
[406785155,1772191831644,-500.0,8.581e-05,2]
[406785156,1772191831653,-500.0,8.581e-05,2]
[406785157,1772191831662,-500.0,8.581e-05,2]
[406785158,1772191831671,-609.59242683,8.581e-05,2]
[406785159,1772191831681,-500.0,8.581e-05,2]
[406785160,1772191831690,-500.0,8.581e-05,2]
[406785161,1772191831699,-500.0,8.581e-05,2]
[406785162,1772191831708,-500.0,8.581e-05,2]
[406785163,1772191831718,-500.0,8.581e-05,2]
[406785164,1772191831727,-499.99999999,8.581e-05,2]
[406785165,1772191831737,-10063.89552478,8.581e-05,2]
[406785166,1772191831746,-4549.98696612,8.581e-05,2]
[406785167,1772191831755,-1141.74329564,8.581e-05,2]
[406785168,1772191831764,-257.36249734,8.581e-05,2]
[406785169,1772191831774,-39279.8517295,8.581e-05,2]
[406785170,1772191831783,-137626.10381478,8.581e-05,2]
[406785171,1772191831796,-1046.42972454,8.581e-05,2]
[406785172,1772191831807,-806.0,8.581e-05,2]
[406785176,1772191837462,-241.41772,8.219e-05,2]
[406785177,1772191837471,-427405.78258218,8.581e-05,2]
[406785178,1772191837481,-257.36249732,8.582e-05,2]
[406785179,1772191837490,-257.36249732,8.582e-05,2]
[406785180,1772191837500,-150.0,8.605e-05,2]
[406785181,1772191837509,-150.0,8.606e-05,2]
[406785182,1772191837519,-150.0,8.607e-05,2]
[406785183,1772191837528,-150.0,8.608e-05,2]
[406785184,1772191837537,-150.0,8.609e-05,2]
[406785185,1772191837546,-150.0,8.61e-05,2]
[406785186,1772191837555,-150.0,8.611e-05,2]
[406785187,1772191837565,-150.0,8.612e-05,2]
[406785188,1772191837573,-150.0,8.613e-05,2]
[406785189,1772191837583,-150.0,8.614e-05,2]
[406785190,1772191837592,-1235.6,8.645e-05,2]
[406785191,1772191837601,-150.0,8.656e-05,2]
[406785192,1772191837610,-150.0,8.656e-05,2]
[406785193,1772191837619,-10325.2544,8.683e-05,2]
[406785194,1772191837628,-961241.3632,8.683e-05,2]
[406785195,1772191837638,-283.90698305,8.711e-05,2]
[406785196,1772191837647,-5000.0,9.33e-05,2]
[406785197,1772191837656,-194.0122658,9.33e-05,2]
[406785198,1772191837666,-250.0,9.33e-05,2]
[406785199,1772191837675,-195.0,9.33e-05,2]
[406785200,1772191837684,-250.0,9.33e-05,2]
[406785201,1772191837693,-1680.0,9.349e-05,2]
[406785202,1772191837702,-255.0,9.428e-05,2]
[406785203,1772191837711,-250.0,9.439e-05,2]
[406785204,1772191837720,-500.0,9.449e-05,2]
[406785205,1772191837730,-8764.519607,9.668e-05,2]
[406785206,1772191837739,-126488.9882418,9.672e-05,2]
[406785207,1772191837748,-197.66,9.7e-05,2]
[406785208,1772191837759,-301.77215,9.81e-05,2]
[406785209,1772191837770,-166.66,9.903e-05,2]
[406785210,1772191837780,-1955.6286635,9.91e-05,2]
[406785211,1772191837790,-28223.5082034,9.916e-05,2]
[406785212,1772191837799,-322.40301155,0.0001,2]
[406785213,1772191837809,-1843.18097405,0.0001,2]
[406785214,1772191837818,-1363.99,0.0001,2]
[406785215,1772191837827,-200.0,0.0001,2]
[406785216,1772191837837,-500.0,0.0001,2]
[406785217,1772191837846,-500.0,0.0001,2]
[406785219,1772191837855,-500.0,0.0001,2]
[406785221,1772191837864,-500.0,0.0001,2]
[406785223,1772191837873,-500.0,0.0001,2]
[406785225,1772191837882,-500.0,0.0001,2]
[406785227,1772191837891,-500.0,0.0001,2]
[406785229,1772191837900,-500.0,0.0001,2]
[406785231,1772191837910,-151.0,0.0001,2]
[406785233,1772191837919,-151.0,0.0001,2]
[406785234,1772191837928,-500.0,0.0001,2]
[406785236,1772191837938,-151.0,0.0001,2]
[406785238,1772191837947,-151.0,0.0001,2]
[406785240,1772191837956,-500.0,0.0001,2]
[406785242,1772191837965,-151.0,0.0001,2]
[406785244,1772191837975,-151.0,0.0001,2]
[406785246,1772191837984,-500.0,0.0001,2]
[406785248,1772191837993,-151.0,0.0001,2]
[406785249,1772191838003,-151.0,0.0001,2]
[406785250,1772191838012,-500.0,0.0001,2]
[406785251,1772191838021,-151.0,0.0001,2]
[406785252,1772191838030,-151.0,0.0001,2]
[406785253,1772191838040,-151.0,0.0001,2]
[406785254,1772191838050,-151.0,0.0001,2]
[406785255,1772191838060,-151.0,0.0001,2]
[406785256,1772191838069,-151.0,0.0001,2]
[406785257,1772191838078,-151.0,0.0001,2]
[406785258,1772191838090,-151.0,0.0001,2]
[406785259,1772191838101,-151.0,0.0001,2]
[406785260,1772191838110,-151.0,0.0001,2]
[406785261,1772191838119,-151.0,0.0001,2]
[406785262,1772191838130,-151.0,0.0001,2]
[406785263,1772191838140,-151.0,0.0001,2]
[406785264,1772191838150,-151.0,0.0001,2]
[406785265,1772191838160,-151.0,0.0001,2]
[406785266,1772191838172,-151.0,0.0001,2]
[406785267,1772191838181,-151.0,0.0001,2]
[406785268,1772191838190,-151.0,0.0001,2]
[406785269,1772191838200,-151.0,0.0001,2]
[406785270,1772191838209,-151.0,0.0001,2]
[406785271,1772191838219,-151.0,0.0001,2]
[406785272,1772191838229,-151.0,0.0001,2]
[406785273,1772191838238,-151.0,0.0001,2]
[406785274,1772191838247,-151.0,0.0001,2]
[406785275,1772191838257,-151.0,0.0001,2]
[406785276,1772191838266,-500.0,0.0001,2]
[406785277,1772191838276,-500.0,0.0001,2]
[406785278,1772191838285,-500.0,0.0001,2]
[406785279,1772191838294,-500.0,0.0001,2]
[406785280,1772191838303,-500.0,0.0001,2]
[406785281,1772191838312,-500.0,0.0001,2]
[406785282,1772191838322,-500.0,0.0001,2]
[406785283,1772191838331,-500.0,0.0001,2]
[406785284,1772191838340,-500.0,0.0001,2]
[406785285,1772191838349,-500.0,0.0001,2]
[406785286,1772191838359,-500.0,0.0001,2]
[406785287,1772191838368,-500.0,0.0001,2]
[406785288,1772191838378,-4000.0,0.00010027,2]
[406785289,1772191838389,-151.0,0.00010055,2]
[406785290,1772191838399,-151.0,0.0001011,2]
[406785291,1772191838409,-4235.24,0.00010124,2]
[406785292,1772191838418,-151.0,0.00010165,2]
[406785293,1772191838428,-151.0,0.0001022,2]
[406785294,1772191838438,-166.66,0.0001023,2]
[406785295,1772191838449,-1363.99,0.00010274,2]
[406785296,1772191838459,-151.0,0.00010275,2]
[406785297,1772191838469,-4000.0,0.00010278,2]
[406785298,1772191838479,-2351.0,0.00010284,2]
[406785299,1772191838488,-500.0,0.000103,2]
[406785300,1772191838499,-888.46058708,0.000103,2]
[406785301,1772191838509,-500.0,0.000103,2]
[406785302,1772191838518,-543.75451416,0.000103,2]
[406785303,1772191838527,-500.0,0.000103,2]
[406785304,1772191838537,-500.0,0.000103,2]
[406785305,1772191838547,-500.0,0.000103,2]
[406785306,1772191838557,-500.0,0.000103,2]
[406785307,1772191838566,-869.50668288,0.000103,2]
[406785308,1772191838575,-500.0,0.000103,2]
[406785309,1772191838585,-500.0,0.000103,2]
[406785310,1772191838595,-500.0,0.000103,2]
[406785311,1772191838604,-503.2038976,0.000103,2]
[406785312,1772191838614,-500.0,0.000103,2]
[406785313,1772191838623,-563.07260655,0.000103,2]
[406785314,1772191838633,-500.0,0.000103,2]
[406785315,1772191838642,-744.54912065,0.000103,2]
[406785316,1772191838652,-980.56702483,0.000103,2]
[406785317,1772191838662,-869.88788903,0.000103,2]
[406785318,1772191838671,-500.0,0.000103,2]
[406785319,1772191838681,-500.0,0.000103,2]
[406785320,1772191838691,-500.0,0.000103,2]
[406785321,1772191838702,-500.0,0.000103,2]
[406785322,1772191838712,-500.0,0.000103,2]
[406785323,1772191838721,-500.0,0.000103,2]
[406785324,1772191838730,-500.0,0.000103,2]
[406785325,1772191838740,-500.0,0.000103,2]
[406785326,1772191838749,-500.0,0.000103,2]
[406785327,1772191838759,-500.0,0.000103,2]
[406785328,1772191838773,-600.0,0.000103,2]
[406785329,1772191838783,-500.0,0.000103,2]
[406785330,1772191838793,-500.0,0.000103,2]
[406785331,1772191838803,-500.0,0.000103,2]
[406785332,1772191838816,-500.0,0.000103,2]
[406785333,1772191838828,-980.56702483,0.000103,2]
[406785334,1772191838846,-151.0,0.0001033,2]
[406785335,1772191838856,-433.0,0.00010371,2]
[406785336,1772191838866,-151.0,0.00010385,2]
[406785337,1772191838876,-1819.47,0.000104,2]
[406785338,1772191838885,-155.0,0.00010418,2]
[406785339,1772191838894,-151.0,0.0001044,2]
[406785340,1772191838904,-2657.75,0.00010475,2]
[406785341,1772191838914,-9999.99,0.00010475,2]
[406785342,1772191838924,-29999.99,0.00010475,2]
[406785343,1772191838934,-151.0,0.00010495,2]
[406785344,1772191838943,-4000.0,0.00010529,2]
[406785345,1772191838953,-1363.99,0.00010548,2]
[406785346,1772191838962,-200.0,0.00010548,2]
[406785347,1772191838973,-151.0,0.0001055,2]
[406785348,1772191838982,-166.66,0.00010557,2]
[406785349,1772191838993,-151.0,0.00010605,2]
[406785350,1772191839003,-234.50005133,0.0001066,2]
[406785351,1772191839013,-4000.0,0.00010779,2]
[406785352,1772191839023,-1363.99,0.00010822,2]
[406785353,1772191839032,-166.66,0.00010884,2]
[406785354,1772191839042,-500.0,0.00010959,2]
[406785355,1772191839052,-395.11120325,0.00010959,2]
[406785356,1772191839065,-2383.69,0.00010959,2]
[406785357,1772191839074,-179.44,0.00011,2]
[406785358,1772191839084,-4000.0,0.0001103,2]
[406785359,1772191839098,-1363.99,0.00011096,2]
[406785360,1772191839110,-200.0,0.00011096,2]
[406785361,1772191839120,-2516.92470882,0.00011099,2]
[406785362,1772191839131,-2516.92470873,0.00011099,2]
[406785363,1772191839142,-27278.73292222,0.00011099,2]
[406785364,1772191839153,-27278.73292219,0.00011099,2]
[406785365,1772191839162,-578.20924308,0.00011129,2]
[406785366,1772191839173,-174.61919141,0.00011129,2]
[406785367,1772191839187,-743.50770149,0.00011129,2]
[406785368,1772191839197,-500.0,0.00011129,2]
[406785369,1772191839208,-500.0,0.00011129,2]
[406785370,1772191839218,-500.0,0.00011129,2]
[406785371,1772191839355,-500.0,0.00011129,2]
[406785372,1772191839366,-500.0,0.00011129,2]
[406785373,1772191839375,-250.0,0.00011129,2]
[406785374,1772191839384,-500.0,0.00011129,2]
[406785375,1772191839394,-250.0,0.00011129,2]
[406785376,1772191839402,-500.0,0.00011129,2]
[406785377,1772191839412,-250.0,0.00011129,2]
[406785378,1772191839421,-500.0,0.00011129,2]
[406785379,1772191839430,-250.0,0.00011129,2]
[406785380,1772191839439,-500.0,0.00011129,2]
[406785381,1772191839448,-250.0,0.00011129,2]
[406785382,1772191839457,-500.0,0.00011129,2]
[406785383,1772191839466,-250.0,0.00011129,2]
[406785384,1772191839475,-500.0,0.00011129,2]
[406785385,1772191839485,-256.63658865,0.00011129,2]
[406785387,1772191839494,-500.0,0.00011129,2]
[406785388,1772191839503,-151.0,0.00011129,2]
[406785389,1772191839512,-695.39793187,0.00011129,2]
[406785390,1772191839521,-151.0,0.00011129,2]
[406785391,1772191839530,-151.0,0.00011129,2]
[406785392,1772191839539,-151.0,0.00011129,2]
[406785393,1772191839549,-151.0,0.00011129,2]
[406785394,1772191839560,-151.0,0.00011129,2]
[406785395,1772191839569,-151.0,0.00011129,2]
[406785396,1772191839579,-250.0,0.00011129,2]
[406785397,1772191839588,-151.0,0.00011129,2]
[406785398,1772191839597,-250.0,0.00011129,2]
[406785399,1772191839606,-151.0,0.00011129,2]
[406785400,1772191839616,-250.0,0.00011129,2]
[406785401,1772191839625,-151.0,0.00011129,2]
[406785402,1772191839639,-250.0,0.00011129,2]
[406785403,1772191839648,-250.0,0.00011129,2]
[406785404,1772191839658,-500.0,0.00011129,2]
[406785405,1772191839668,-151.0,0.00011129,2]